{"text_format":"1","workbook":"xlsx","n_sheets":3,"sheets":["Rankingi","Dane","Roboczy"],"not_rendered":{"charts":0,"images":0,"macros":1,"external_links":0,"defined_names":1,"comments":0,"pivot_tables":0},"unopened":[],"bounds":{"document_bytes":16777216,"sheet_cells":100000,"rows_first":2000,"rows_last":500,"rows_between":2000,"halvings":0,"cell_chars":16384,"cell_head_chars":4096},"cells_cut":0,"cells_raw":0,"read":"whole","date_system":"1900"}

{"sheet":"Rankingi","index":0,"n_rows":59,"n_cols":14,"rows_kept":59,"cut":false,"hidden":false,"merged":[[0,2,0,4],[1,3,7,4],[1,6,7,7],[0,5,0,7],[0,8,0,10],[1,2,7,2],[0,11,0,13],[1,12,4,13],[1,9,7,10],[5,12,5,13],[6,12,6,13]]}
[null,null,"Ranking liniowy (według funkcji liniowej) z wagami miesięcznika Perspektywy\nLinear ranking (by a linear function) with weights as in Perspektywy 2016 ranking",null,null,"Ranking liniowy (według funkcji liniowej) według wag własnych\nLinear ranking (by a linear function) with one's own weights",null,null,"Ranking zrównoważony (funkcja Czebyszewa) według wag własnych\nBalanced ranking (Czebyshev function) with one's own weights",null,null,"Ranking zrównoważony (funkcja Czebyszewa) według obiektu bazowego\nBalanced ranking (Czebyshev function) defined by a base object (here: university)"]
[null,"Prestiż",null,null,null,0,null,null,27,null,null,{"$f":"Roboczy!B7","v":11.775155891562241}]
[null,"Innowacyjność",null,null,null,100,null,null,9,null,null,{"$f":"Roboczy!C7","v":1.2733520884444094}]
[null,"Potenencjał\nnaukowy",null,null,null,0,null,null,15,null,null,{"$f":"Roboczy!D7","v":14.434062060624672}]
[null,"Efektywność\nnaukowa",null,null,null,0,null,null,25,null,null,{"$f":"Roboczy!E7","v":67.11838858190481}]
[null,"Warunki\nkształcenia",null,null,null,0,null,null,9,null,null,{"$f":"Roboczy!F7","v":3.9621244735481009}," Obiekt bazowy - lp wdłg. arkusza Dane"]
[null,"Umiędzynarodowienie",null,null,null,0,null,null,15,null,null,{"$f":"Roboczy!G7","v":1.436916903915753},1]
[null,"Suma wag",null,null,null,{"$f":"SUM(F2:F7)","v":100},null,null,100,null,null,99.999999999999986]
[null,null,null,"wartość","pozycja \nw rankingu",null,"wartość","pozycja \nw rankingu",null,"wartość","pozycja \nw rankingu",null,"wartość","pozycja \nw rankingu"]
[null,null,"Uniwersytet Warszawski",null,1,"Politechnika_Lubelska",{"$f":"$F$2*Dane!H35+$F$3*Dane!I35+$F$4*Dane!J35+$F$5*Dane!K35+$F$6*Dane!L35+$F$7*Dane!M35","v":10000},1,"Uniwersytet_Warszawski",{"$f":"MAX(Rankingi!$I$2*(101-Dane!H3),Rankingi!$I$3*(101-Dane!I3),Rankingi!$I$4*(101-Dane!J3),Rankingi!$I$5*(101-Dane!K3),Rankingi!$I$6*(101-Dane!L3),Rankingi!$I$7*(101-Dane!M3))","v":700.65},1,"Uniwersytet_Warszawski",{"$f":"MAX(Rankingi!$L$2*(101-Dane!H3),Rankingi!$L$3*(101-Dane!I3),Rankingi!$L$4*(101-Dane!J3),Rankingi!$L$5*(101-Dane!K3),Rankingi!$L$6*(101-Dane!L3),Rankingi!$L$7*(101-Dane!M3))","v":67.118388581904824},1]
[null,null,"Uniwersytet Jagielloński",null,2,"Politechnika_Wrocławska",{"$f":"$F$2*Dane!H7+$F$3*Dane!I7+$F$4*Dane!J7+$F$5*Dane!K7+$F$6*Dane!L7+$F$7*Dane!M7","v":8979},2,"Uniwersytet_Jagielloński",{"$f":"MAX(Rankingi!$I$2*(101-Dane!H4),Rankingi!$I$3*(101-Dane!I4),Rankingi!$I$4*(101-Dane!J4),Rankingi!$I$5*(101-Dane!K4),Rankingi!$I$6*(101-Dane!L4),Rankingi!$I$7*(101-Dane!M4))","v":713.40000000000009},2,"Uniwersytet_\u008cŚląski_w_Katowicach",{"$f":"MAX(Rankingi!$L$2*(101-Dane!H15),Rankingi!$L$3*(101-Dane!I15),Rankingi!$L$4*(101-Dane!J15),Rankingi!$L$5*(101-Dane!K15),Rankingi!$L$6*(101-Dane!L15),Rankingi!$L$7*(101-Dane!M15))","v":899.38640699752489},2]
[null,null,"Uniwersytet im. Adama Mickiewicza w Poznaniu",null,3,"Akademia_Górniczo-Hutnicza_im._Stanisława_Staszica_w_Krakowie",{"$f":"$F$2*Dane!H8+$F$3*Dane!I8+$F$4*Dane!J8+$F$5*Dane!K8+$F$6*Dane!L8+$F$7*Dane!M8","v":6875},3,"Uniwersytet_im._Adama_Mickiewicza_w_Poznaniu",{"$f":"MAX(Rankingi!$I$2*(101-Dane!H6),Rankingi!$I$3*(101-Dane!I6),Rankingi!$I$4*(101-Dane!J6),Rankingi!$I$5*(101-Dane!K6),Rankingi!$I$6*(101-Dane!L6),Rankingi!$I$7*(101-Dane!M6))","v":795.68999999999994},3,"Gdański_Uniwersytet_Medyczny",{"$f":"MAX(Rankingi!$L$2*(101-Dane!H11),Rankingi!$L$3*(101-Dane!I11),Rankingi!$L$4*(101-Dane!J11),Rankingi!$L$5*(101-Dane!K11),Rankingi!$L$6*(101-Dane!L11),Rankingi!$L$7*(101-Dane!M11))","v":1039.6638391337051},3]
[null,null,"Politechnika Warszawska",null,4,"Politechnika_Gdańska",{"$f":"$F$2*Dane!H17+$F$3*Dane!I17+$F$4*Dane!J17+$F$5*Dane!K17+$F$6*Dane!L17+$F$7*Dane!M17","v":6764},4,"Politechnika_Warszawska",{"$f":"MAX(Rankingi!$I$2*(101-Dane!H5),Rankingi!$I$3*(101-Dane!I5),Rankingi!$I$4*(101-Dane!J5),Rankingi!$I$5*(101-Dane!K5),Rankingi!$I$6*(101-Dane!L5),Rankingi!$I$7*(101-Dane!M5))","v":1027.3499999999999},4,"Uniwersytet_Jagielloński",{"$f":"MAX(Rankingi!$L$2*(101-Dane!H4),Rankingi!$L$3*(101-Dane!I4),Rankingi!$L$4*(101-Dane!J4),Rankingi!$L$5*(101-Dane!K4),Rankingi!$L$6*(101-Dane!L4),Rankingi!$L$7*(101-Dane!M4))","v":1066.5111945664676},4]
[null,null,"Politechnika Wrocławska",null,5,"Politechnika_Łódzka",{"$f":"$F$2*Dane!H16+$F$3*Dane!I16+$F$4*Dane!J16+$F$5*Dane!K16+$F$6*Dane!L16+$F$7*Dane!M16","v":6623},5,"Politechnika_Wrocławska",{"$f":"MAX(Rankingi!$I$2*(101-Dane!H8),Rankingi!$I$3*(101-Dane!I8),Rankingi!$I$4*(101-Dane!J8),Rankingi!$I$5*(101-Dane!K8),Rankingi!$I$6*(101-Dane!L8),Rankingi!$I$7*(101-Dane!M8))","v":1109.97},5,"Akademia_Górniczo-Hutnicza_im._Stanisława_Staszica_w_Krakowie",{"$f":"MAX(Rankingi!$L$2*(101-Dane!H8),Rankingi!$L$3*(101-Dane!I8),Rankingi!$L$4*(101-Dane!J8),Rankingi!$L$5*(101-Dane!K8),Rankingi!$L$6*(101-Dane!L8),Rankingi!$L$7*(101-Dane!M8))","v":1240.3478209936011},5]
[null,null,"Akademia Górniczo-Hutnicza im. Stanisława Staszica w Krakowie",null,6,"Zachodniopomorski_Uniwersytet_Technologiczny_w_Szczecinie",{"$f":"$F$2*Dane!H41+$F$3*Dane!I41+$F$4*Dane!J41+$F$5*Dane!K41+$F$6*Dane!L41+$F$7*Dane!M41","v":5066},6,"Akademia_Górniczo-Hutnicza_im._Stanisława_Staszica_w_Krakowie",{"$f":"MAX(Rankingi!$I$2*(101-Dane!H7),Rankingi!$I$3*(101-Dane!I7),Rankingi!$I$4*(101-Dane!J7),Rankingi!$I$5*(101-Dane!K7),Rankingi!$I$6*(101-Dane!L7),Rankingi!$I$7*(101-Dane!M7))","v":1221.2099999999998},6,"Uniwersytet_Wrocławski",{"$f":"MAX(Rankingi!$L$2*(101-Dane!H9),Rankingi!$L$3*(101-Dane!I9),Rankingi!$L$4*(101-Dane!J9),Rankingi!$L$5*(101-Dane!K9),Rankingi!$L$6*(101-Dane!L9),Rankingi!$L$7*(101-Dane!M9))","v":1291.3577963158482},6]
[null,null,"Uniwersytet Wrocławski",null,7,"Uniwersytet_Warszawski",{"$f":"$F$2*Dane!H3+$F$3*Dane!I3+$F$4*Dane!J3+$F$5*Dane!K3+$F$6*Dane!L3+$F$7*Dane!M3","v":4829},7,"Uniwersytet_Wrocławski",{"$f":"MAX(Rankingi!$I$2*(101-Dane!H9),Rankingi!$I$3*(101-Dane!I9),Rankingi!$I$4*(101-Dane!J9),Rankingi!$I$5*(101-Dane!K9),Rankingi!$I$6*(101-Dane!L9),Rankingi!$I$7*(101-Dane!M9))","v":1301.67},7,"Uniwersytet_im._Adama_Mickiewicza_w_Poznaniu",{"$f":"MAX(Rankingi!$L$2*(101-Dane!H5),Rankingi!$L$3*(101-Dane!I5),Rankingi!$L$4*(101-Dane!J5),Rankingi!$L$5*(101-Dane!K5),Rankingi!$L$6*(101-Dane!L5),Rankingi!$L$7*(101-Dane!M5))","v":1295.3848996307627},7]
[null,null,"Warszawski Uniwersytet Medyczny",null,8,"Politechnika_Rzeszowska_im._Ignacego_Łukasiewicza",{"$f":"$F$2*Dane!H47+$F$3*Dane!I47+$F$4*Dane!J47+$F$5*Dane!K47+$F$6*Dane!L47+$F$7*Dane!M47","v":4702},8,"Warszawski_Uniwersytet_Medyczny",{"$f":"MAX(Rankingi!$I$2*(101-Dane!H13),Rankingi!$I$3*(101-Dane!I13),Rankingi!$I$4*(101-Dane!J13),Rankingi!$I$5*(101-Dane!K13),Rankingi!$I$6*(101-Dane!L13),Rankingi!$I$7*(101-Dane!M13))","v":1390.77},8,"Uniwersytet_Marii_Curie-Skłodowskiej_w_Lublinie",{"$f":"MAX(Rankingi!$L$2*(101-Dane!H28),Rankingi!$L$3*(101-Dane!I28),Rankingi!$L$4*(101-Dane!J28),Rankingi!$L$5*(101-Dane!K28),Rankingi!$L$6*(101-Dane!L28),Rankingi!$L$7*(101-Dane!M28))","v":1298.7408190598576},8]
[null,null,"Gdański Uniwersytet Medyczny",null,9,"Uniwersytet_im._Adama_Mickiewicza_w_Poznaniu",{"$f":"$F$2*Dane!H5+$F$3*Dane!I5+$F$4*Dane!J5+$F$5*Dane!K5+$F$6*Dane!L5+$F$7*Dane!M5","v":4684},9,"Gdański_Uniwersytet_Medyczny",{"$f":"MAX(Rankingi!$I$2*(101-Dane!H10),Rankingi!$I$3*(101-Dane!I10),Rankingi!$I$4*(101-Dane!J10),Rankingi!$I$5*(101-Dane!K10),Rankingi!$I$6*(101-Dane!L10),Rankingi!$I$7*(101-Dane!M10))","v":1511.4599999999998},9,"Politechnika_Warszawska",{"$f":"MAX(Rankingi!$L$2*(101-Dane!H6),Rankingi!$L$3*(101-Dane!I6),Rankingi!$L$4*(101-Dane!J6),Rankingi!$L$5*(101-Dane!K6),Rankingi!$L$6*(101-Dane!L6),Rankingi!$L$7*(101-Dane!M6))","v":1426.9369412512965},9]
[null,null,"Uniwersytet Mikołaja Kopernika w Toruniu",null,10,"Politechnika_Warszawska",{"$f":"$F$2*Dane!H6+$F$3*Dane!I6+$F$4*Dane!J6+$F$5*Dane!K6+$F$6*Dane!L6+$F$7*Dane!M6","v":4440},10,"Uniwersytet_Mikołaja_Kopernika_w_Toruniu",{"$f":"MAX(Rankingi!$I$2*(101-Dane!H12),Rankingi!$I$3*(101-Dane!I12),Rankingi!$I$4*(101-Dane!J12),Rankingi!$I$5*(101-Dane!K12),Rankingi!$I$6*(101-Dane!L12),Rankingi!$I$7*(101-Dane!M12))","v":1519.2900000000002},10,"Uniwersytet_w_Białymstoku",{"$f":"MAX(Rankingi!$L$2*(101-Dane!H39),Rankingi!$L$3*(101-Dane!I39),Rankingi!$L$4*(101-Dane!J39),Rankingi!$L$5*(101-Dane!K39),Rankingi!$L$6*(101-Dane!L39),Rankingi!$L$7*(101-Dane!M39))","v":1483.3163876600959},10]
[null,null,"Szkoła Główna Handlowa w Warszawie",null,11,"Politechnika_Poznańska",{"$f":"$F$2*Dane!H19+$F$3*Dane!I19+$F$4*Dane!J19+$F$5*Dane!K19+$F$6*Dane!L19+$F$7*Dane!M19","v":4386},11,"Szkoła_Główna_Handlowa_w_Warszawie",{"$f":"MAX(Rankingi!$I$2*(101-Dane!H21),Rankingi!$I$3*(101-Dane!I21),Rankingi!$I$4*(101-Dane!J21),Rankingi!$I$5*(101-Dane!K21),Rankingi!$I$6*(101-Dane!L21),Rankingi!$I$7*(101-Dane!M21))","v":1552.5},11,"Uniwersytet_Medyczny_im._Karola_Marcinkowskiego_w_Poznaniu",{"$f":"MAX(Rankingi!$L$2*(101-Dane!H14),Rankingi!$L$3*(101-Dane!I14),Rankingi!$L$4*(101-Dane!J14),Rankingi!$L$5*(101-Dane!K14),Rankingi!$L$6*(101-Dane!L14),Rankingi!$L$7*(101-Dane!M14))","v":1502.1095364630294},11]
[null,null,"Uniwersytet Medyczny im. Karola Marcinkowskiego w Poznaniu",null,12,"Uniwersytet_Przyrodniczy_we_Wrocławiu",{"$f":"$F$2*Dane!H31+$F$3*Dane!I31+$F$4*Dane!J31+$F$5*Dane!K31+$F$6*Dane!L31+$F$7*Dane!M31","v":4363},12,"Uniwersytet_Medyczny_im._Karola_Marcinkowskiego_w_Poznaniu",{"$f":"MAX(Rankingi!$I$2*(101-Dane!H29),Rankingi!$I$3*(101-Dane!I29),Rankingi!$I$4*(101-Dane!J29),Rankingi!$I$5*(101-Dane!K29),Rankingi!$I$6*(101-Dane!L29),Rankingi!$I$7*(101-Dane!M29))","v":1609.2},12,"Warszawski_Uniwersytet_Medyczny",{"$f":"MAX(Rankingi!$L$2*(101-Dane!H10),Rankingi!$L$3*(101-Dane!I10),Rankingi!$L$4*(101-Dane!J10),Rankingi!$L$5*(101-Dane!K10),Rankingi!$L$6*(101-Dane!L10),Rankingi!$L$7*(101-Dane!M10))","v":1635.6751297410206},12]
[null,null,"Uniwersytet \u008cŚląski w Katowicach",null,13,"Uniwersytet_Medyczny_w_Lublinie",{"$f":"$F$2*Dane!H26+$F$3*Dane!I26+$F$4*Dane!J26+$F$5*Dane!K26+$F$6*Dane!L26+$F$7*Dane!M26","v":3215.9999999999995},13,"Uniwersytet_\u008cŚląski_w_Katowicach",{"$f":"MAX(Rankingi!$I$2*(101-Dane!H19),Rankingi!$I$3*(101-Dane!I19),Rankingi!$I$4*(101-Dane!J19),Rankingi!$I$5*(101-Dane!K19),Rankingi!$I$6*(101-Dane!L19),Rankingi!$I$7*(101-Dane!M19))","v":1656.18},13,"Pomorski_Uniwersytet_Medyczny_w_Szczecinie",{"$f":"MAX(Rankingi!$L$2*(101-Dane!H34),Rankingi!$L$3*(101-Dane!I34),Rankingi!$L$4*(101-Dane!J34),Rankingi!$L$5*(101-Dane!K34),Rankingi!$L$6*(101-Dane!L34),Rankingi!$L$7*(101-Dane!M34))","v":1753.8034936451725},13]
[null,null,"Politechnika Łódzka",null,14,"Uniwersytet_Jagielloński",{"$f":"$F$2*Dane!H4+$F$3*Dane!I4+$F$4*Dane!J4+$F$5*Dane!K4+$F$6*Dane!L4+$F$7*Dane!M4","v":3048},14,"Politechnika_Łódzka",{"$f":"MAX(Rankingi!$I$2*(101-Dane!H24),Rankingi!$I$3*(101-Dane!I24),Rankingi!$I$4*(101-Dane!J24),Rankingi!$I$5*(101-Dane!K24),Rankingi!$I$6*(101-Dane!L24),Rankingi!$I$7*(101-Dane!M24))","v":1664.82},14,"Uniwersytet_Medyczny_w_Białymstoku",{"$f":"MAX(Rankingi!$L$2*(101-Dane!H27),Rankingi!$L$3*(101-Dane!I27),Rankingi!$L$4*(101-Dane!J27),Rankingi!$L$5*(101-Dane!K27),Rankingi!$L$6*(101-Dane!L27),Rankingi!$L$7*(101-Dane!M27))","v":1755.1458614168112},14]
[null,null,"Politechnika Gdańska",null,15,"Politechnika_Śląska_w_Gliwicach",{"$f":"$F$2*Dane!H21+$F$3*Dane!I21+$F$4*Dane!J21+$F$5*Dane!K21+$F$6*Dane!L21+$F$7*Dane!M21","v":3044},15,"Politechnika_Gdańska",{"$f":"MAX(Rankingi!$I$2*(101-Dane!H15),Rankingi!$I$3*(101-Dane!I15),Rankingi!$I$4*(101-Dane!J15),Rankingi!$I$5*(101-Dane!K15),Rankingi!$I$6*(101-Dane!L15),Rankingi!$I$7*(101-Dane!M15))","v":1674.27},15,"Uniwersytet_Medyczny_im._Piastów_Śląskich_we_Wrocławiu",{"$f":"MAX(Rankingi!$L$2*(101-Dane!H20),Rankingi!$L$3*(101-Dane!I20),Rankingi!$L$4*(101-Dane!J20),Rankingi!$L$5*(101-Dane!K20),Rankingi!$L$6*(101-Dane!L20),Rankingi!$L$7*(101-Dane!M20))","v":1890.0538224664392},15]
[null,null,"Uniwersytet Łódzki",null,16,"Uniwersytet_Warmińsko-Mazurski_w_Olsztynie",{"$f":"$F$2*Dane!H37+$F$3*Dane!I37+$F$4*Dane!J37+$F$5*Dane!K37+$F$6*Dane!L37+$F$7*Dane!M37","v":3033},16,"Uniwersytet_Łódzki",{"$f":"MAX(Rankingi!$I$2*(101-Dane!H18),Rankingi!$I$3*(101-Dane!I18),Rankingi!$I$4*(101-Dane!J18),Rankingi!$I$5*(101-Dane!K18),Rankingi!$I$6*(101-Dane!L18),Rankingi!$I$7*(101-Dane!M18))","v":1750.1399999999999},16,"Śląski_Uniwersytet_Medyczny_w_Katowicach",{"$f":"MAX(Rankingi!$L$2*(101-Dane!H32),Rankingi!$L$3*(101-Dane!I32),Rankingi!$L$4*(101-Dane!J32),Rankingi!$L$5*(101-Dane!K32),Rankingi!$L$6*(101-Dane!L32),Rankingi!$L$7*(101-Dane!M32))","v":1896.7656613246302},16]
[null,null,"Politechnika Poznańska",null,17,"Uniwersytet_Przyrodniczy_w_Lublinie",{"$f":"$F$2*Dane!H50+$F$3*Dane!I50+$F$4*Dane!J50+$F$5*Dane!K50+$F$6*Dane!L50+$F$7*Dane!M50","v":2954},17,"Politechnika_Poznańska",{"$f":"MAX(Rankingi!$I$2*(101-Dane!H23),Rankingi!$I$3*(101-Dane!I23),Rankingi!$I$4*(101-Dane!J23),Rankingi!$I$5*(101-Dane!K23),Rankingi!$I$6*(101-Dane!L23),Rankingi!$I$7*(101-Dane!M23))","v":1765.8000000000002},17,"Uniwersytet_Medyczny_w_Łodzi",{"$f":"MAX(Rankingi!$L$2*(101-Dane!H22),Rankingi!$L$3*(101-Dane!I22),Rankingi!$L$4*(101-Dane!J22),Rankingi!$L$5*(101-Dane!K22),Rankingi!$L$6*(101-Dane!L22),Rankingi!$L$7*(101-Dane!M22))","v":1905.4910518402776},17]
[null,null,"Uniwersytet Medyczny im. Piastów Śląskich we Wrocławiu",null,18,"Politechnika_Opolska",{"$f":"$F$2*Dane!H51+$F$3*Dane!I51+$F$4*Dane!J51+$F$5*Dane!K51+$F$6*Dane!L51+$F$7*Dane!M51","v":2874},18,"Uniwersytet_Medyczny_im._Piastów_Śląskich_we_Wrocławiu",{"$f":"MAX(Rankingi!$I$2*(101-Dane!H28),Rankingi!$I$3*(101-Dane!I28),Rankingi!$I$4*(101-Dane!J28),Rankingi!$I$5*(101-Dane!K28),Rankingi!$I$6*(101-Dane!L28),Rankingi!$I$7*(101-Dane!M28))","v":1791.4499999999998},18,"Uniwersytet_Łódzki",{"$f":"MAX(Rankingi!$L$2*(101-Dane!H18),Rankingi!$L$3*(101-Dane!I18),Rankingi!$L$4*(101-Dane!J18),Rankingi!$L$5*(101-Dane!K18),Rankingi!$L$6*(101-Dane!L18),Rankingi!$L$7*(101-Dane!M18))","v":1928.982487843944},18]
[null,null,"Politechnika Śląska w Gliwicach",null,19,"Uniwersytet_Gdański",{"$f":"$F$2*Dane!H23+$F$3*Dane!I23+$F$4*Dane!J23+$F$5*Dane!K23+$F$6*Dane!L23+$F$7*Dane!M23","v":2790},19,"Politechnika_Śląska_w_Gliwicach",{"$f":"MAX(Rankingi!$I$2*(101-Dane!H16),Rankingi!$I$3*(101-Dane!I16),Rankingi!$I$4*(101-Dane!J16),Rankingi!$I$5*(101-Dane!K16),Rankingi!$I$6*(101-Dane!L16),Rankingi!$I$7*(101-Dane!M16))","v":1793.6100000000001},19,"Uniwersytet_Mikołaja_Kopernika_w_Toruniu",{"$f":"MAX(Rankingi!$L$2*(101-Dane!H12),Rankingi!$L$3*(101-Dane!I12),Rankingi!$L$4*(101-Dane!J12),Rankingi!$L$5*(101-Dane!K12),Rankingi!$L$6*(101-Dane!L12),Rankingi!$L$7*(101-Dane!M12))","v":1950.460372190154},19]
[null,null,"Uniwersytet Medyczny w Łodzi",null,20,"Uniwersytet_\u008cŚląski_w_Katowicach",{"$f":"$F$2*Dane!H15+$F$3*Dane!I15+$F$4*Dane!J15+$F$5*Dane!K15+$F$6*Dane!L15+$F$7*Dane!M15","v":2704},20,"Uniwersytet_Medyczny_w_Łodzi",{"$f":"MAX(Rankingi!$I$2*(101-Dane!H43),Rankingi!$I$3*(101-Dane!I43),Rankingi!$I$4*(101-Dane!J43),Rankingi!$I$5*(101-Dane!K43),Rankingi!$I$6*(101-Dane!L43),Rankingi!$I$7*(101-Dane!M43))","v":1812.78},20,"Politechnika_Poznańska",{"$f":"MAX(Rankingi!$L$2*(101-Dane!H19),Rankingi!$L$3*(101-Dane!I19),Rankingi!$L$4*(101-Dane!J19),Rankingi!$L$5*(101-Dane!K19),Rankingi!$L$6*(101-Dane!L19),Rankingi!$L$7*(101-Dane!M19))","v":2097.4496431845255},20]
[null,null,"Uniwersytet Gdański",null,21,"Uniwersytet_Marii_Curie-Skłodowskiej_w_Lublinie",{"$f":"$F$2*Dane!H28+$F$3*Dane!I28+$F$4*Dane!J28+$F$5*Dane!K28+$F$6*Dane!L28+$F$7*Dane!M28","v":2142},21,"Uniwersytet_Gdański",{"$f":"MAX(Rankingi!$I$2*(101-Dane!H30),Rankingi!$I$3*(101-Dane!I30),Rankingi!$I$4*(101-Dane!J30),Rankingi!$I$5*(101-Dane!K30),Rankingi!$I$6*(101-Dane!L30),Rankingi!$I$7*(101-Dane!M30))","v":1827.6299999999999},21,"Wojskowa_Akademia_Techniczna_im._Jarosława_Dąbrowskiego_w_Warszawie",{"$f":"MAX(Rankingi!$L$2*(101-Dane!H38),Rankingi!$L$3*(101-Dane!I38),Rankingi!$L$4*(101-Dane!J38),Rankingi!$L$5*(101-Dane!K38),Rankingi!$L$6*(101-Dane!L38),Rankingi!$L$7*(101-Dane!M38))","v":2163.8968478806109},21]
[null,null,"Uniwersytet Ekonomiczny w Poznaniu",null,22,"Uniwersytet_Łódzki",{"$f":"$F$2*Dane!H18+$F$3*Dane!I18+$F$4*Dane!J18+$F$5*Dane!K18+$F$6*Dane!L18+$F$7*Dane!M18","v":2106},22,"Uniwersytet_Ekonomiczny_w_Poznaniu",{"$f":"MAX(Rankingi!$I$2*(101-Dane!H17),Rankingi!$I$3*(101-Dane!I17),Rankingi!$I$4*(101-Dane!J17),Rankingi!$I$5*(101-Dane!K17),Rankingi!$I$6*(101-Dane!L17),Rankingi!$I$7*(101-Dane!M17))","v":1836},22,"Uniwersytet_Gdański",{"$f":"MAX(Rankingi!$L$2*(101-Dane!H23),Rankingi!$L$3*(101-Dane!I23),Rankingi!$L$4*(101-Dane!J23),Rankingi!$L$5*(101-Dane!K23),Rankingi!$L$6*(101-Dane!L23),Rankingi!$L$7*(101-Dane!M23))","v":2193.4289388566494},22]
[null,null,"Akademia Leona Ko\u009fmińskiego w Warszawie",null,23,"Politechnika_Krakowska_im._Tadeusza_Ko\u009cciuszki",{"$f":"$F$2*Dane!H43+$F$3*Dane!I43+$F$4*Dane!J43+$F$5*Dane!K43+$F$6*Dane!L43+$F$7*Dane!M43","v":2080},23,"Akademia_Leona_Ko\u009fmińskiego_w_Warszawie",{"$f":"MAX(Rankingi!$I$2*(101-Dane!H25),Rankingi!$I$3*(101-Dane!I25),Rankingi!$I$4*(101-Dane!J25),Rankingi!$I$5*(101-Dane!K25),Rankingi!$I$6*(101-Dane!L25),Rankingi!$I$7*(101-Dane!M25))","v":1870.0200000000002},23,"Uniwersytet_Przyrodniczy_w_Poznaniu",{"$f":"MAX(Rankingi!$L$2*(101-Dane!H30),Rankingi!$L$3*(101-Dane!I30),Rankingi!$L$4*(101-Dane!J30),Rankingi!$L$5*(101-Dane!K30),Rankingi!$L$6*(101-Dane!L30),Rankingi!$L$7*(101-Dane!M30))","v":2371.9638524845163},23]
[null,null,"Uniwersytet Medyczny w Lublinie",null,24,"Uniwersytet_Medyczny_im._Piastów_Śląskich_we_Wrocławiu",{"$f":"$F$2*Dane!H20+$F$3*Dane!I20+$F$4*Dane!J20+$F$5*Dane!K20+$F$6*Dane!L20+$F$7*Dane!M20","v":2072},24,"Uniwersytet_Medyczny_w_Lublinie",{"$f":"MAX(Rankingi!$I$2*(101-Dane!H42),Rankingi!$I$3*(101-Dane!I42),Rankingi!$I$4*(101-Dane!J42),Rankingi!$I$5*(101-Dane!K42),Rankingi!$I$6*(101-Dane!L42),Rankingi!$I$7*(101-Dane!M42))","v":1890.54},24,"Politechnika_Wrocławska",{"$f":"MAX(Rankingi!$L$2*(101-Dane!H7),Rankingi!$L$3*(101-Dane!I7),Rankingi!$L$4*(101-Dane!J7),Rankingi!$L$5*(101-Dane!K7),Rankingi!$L$6*(101-Dane!L7),Rankingi!$L$7*(101-Dane!M7))","v":2424.9873794642203},24]
[null,null,"Uniwersytet Medyczny w Białymstoku",null,25,"Uniwersytet_Mikołaja_Kopernika_w_Toruniu",{"$f":"$F$2*Dane!H12+$F$3*Dane!I12+$F$4*Dane!J12+$F$5*Dane!K12+$F$6*Dane!L12+$F$7*Dane!M12","v":1997},25,"Uniwersytet_Medyczny_w_Białymstoku",{"$f":"MAX(Rankingi!$I$2*(101-Dane!H33),Rankingi!$I$3*(101-Dane!I33),Rankingi!$I$4*(101-Dane!J33),Rankingi!$I$5*(101-Dane!K33),Rankingi!$I$6*(101-Dane!L33),Rankingi!$I$7*(101-Dane!M33))","v":1900.53},25,"Uniwersytet_Medyczny_w_Lublinie",{"$f":"MAX(Rankingi!$L$2*(101-Dane!H26),Rankingi!$L$3*(101-Dane!I26),Rankingi!$L$4*(101-Dane!J26),Rankingi!$L$5*(101-Dane!K26),Rankingi!$L$6*(101-Dane!L26),Rankingi!$L$7*(101-Dane!M26))","v":2496.1328713610396},25]
[null,null,"Uniwersytet Marii Curie-Skłodowskiej w Lublinie",null,26,"Uniwersytet_w_Białymstoku",{"$f":"$F$2*Dane!H39+$F$3*Dane!I39+$F$4*Dane!J39+$F$5*Dane!K39+$F$6*Dane!L39+$F$7*Dane!M39","v":1777},26,"Uniwersytet_Marii_Curie-Skłodowskiej_w_Lublinie",{"$f":"MAX(Rankingi!$I$2*(101-Dane!H22),Rankingi!$I$3*(101-Dane!I22),Rankingi!$I$4*(101-Dane!J22),Rankingi!$I$5*(101-Dane!K22),Rankingi!$I$6*(101-Dane!L22),Rankingi!$I$7*(101-Dane!M22))","v":1912.1399999999999},26,"Politechnika_Gdańska",{"$f":"MAX(Rankingi!$L$2*(101-Dane!H17),Rankingi!$L$3*(101-Dane!I17),Rankingi!$L$4*(101-Dane!J17),Rankingi!$L$5*(101-Dane!K17),Rankingi!$L$6*(101-Dane!L17),Rankingi!$L$7*(101-Dane!M17))","v":2536.4039045101827},26]
[null,null,"Szkoła Główna Gospodarstwa Wiejskiego w Warszawie",null,27,"Wojskowa_Akademia_Techniczna_im._Jarosława_Dąbrowskiego_w_Warszawie",{"$f":"$F$2*Dane!H38+$F$3*Dane!I38+$F$4*Dane!J38+$F$5*Dane!K38+$F$6*Dane!L38+$F$7*Dane!M38","v":1600},27,"Szkoła_Główna_Gospodarstwa_Wiejskiego_w_Warszawie",{"$f":"MAX(Rankingi!$I$2*(101-Dane!H40),Rankingi!$I$3*(101-Dane!I40),Rankingi!$I$4*(101-Dane!J40),Rankingi!$I$5*(101-Dane!K40),Rankingi!$I$6*(101-Dane!L40),Rankingi!$I$7*(101-Dane!M40))","v":1913.7599999999998},27,"Katolicki_Uniwersytet_Lubelski_Jana_Pawła_II",{"$f":"MAX(Rankingi!$L$2*(101-Dane!H33),Rankingi!$L$3*(101-Dane!I33),Rankingi!$L$4*(101-Dane!J33),Rankingi!$L$5*(101-Dane!K33),Rankingi!$L$6*(101-Dane!L33),Rankingi!$L$7*(101-Dane!M33))","v":2602.1799253204499},27]
[null,null,"Uniwersytet Przyrodniczy w Poznaniu",null,28,"Szkoła_Główna_Gospodarstwa_Wiejskiego_w_Warszawie",{"$f":"$F$2*Dane!H29+$F$3*Dane!I29+$F$4*Dane!J29+$F$5*Dane!K29+$F$6*Dane!L29+$F$7*Dane!M29","v":1546},28,"Uniwersytet_Przyrodniczy_w_Poznaniu",{"$f":"MAX(Rankingi!$I$2*(101-Dane!H20),Rankingi!$I$3*(101-Dane!I20),Rankingi!$I$4*(101-Dane!J20),Rankingi!$I$5*(101-Dane!K20),Rankingi!$I$6*(101-Dane!L20),Rankingi!$I$7*(101-Dane!M20))","v":1920.78},28,"Uniwersytet_Przyrodniczy_we_Wrocławiu",{"$f":"MAX(Rankingi!$L$2*(101-Dane!H31),Rankingi!$L$3*(101-Dane!I31),Rankingi!$L$4*(101-Dane!J31),Rankingi!$L$5*(101-Dane!K31),Rankingi!$L$6*(101-Dane!L31),Rankingi!$L$7*(101-Dane!M31))","v":2665.2712105874402},28]
[null,null,"Uniwersytet Przyrodniczy we Wrocławiu",null,29,"Warszawski_Uniwersytet_Medyczny",{"$f":"$F$2*Dane!H10+$F$3*Dane!I10+$F$4*Dane!J10+$F$5*Dane!K10+$F$6*Dane!L10+$F$7*Dane!M10","v":1524},29,"Uniwersytet_Przyrodniczy_we_Wrocławiu",{"$f":"MAX(Rankingi!$I$2*(101-Dane!H37),Rankingi!$I$3*(101-Dane!I37),Rankingi!$I$4*(101-Dane!J37),Rankingi!$I$5*(101-Dane!K37),Rankingi!$I$6*(101-Dane!L37),Rankingi!$I$7*(101-Dane!M37))","v":1928.07},29,"Politechnika_Śląska_w_Gliwicach",{"$f":"MAX(Rankingi!$L$2*(101-Dane!H21),Rankingi!$L$3*(101-Dane!I21),Rankingi!$L$4*(101-Dane!J21),Rankingi!$L$5*(101-Dane!K21),Rankingi!$L$6*(101-Dane!L21),Rankingi!$L$7*(101-Dane!M21))","v":2735.74551859844},29]
[null,null,"Śląski Uniwersytet Medyczny w Katowicach",null,30,"Pomorski_Uniwersytet_Medyczny_w_Szczecinie",{"$f":"$F$2*Dane!H34+$F$3*Dane!I34+$F$4*Dane!J34+$F$5*Dane!K34+$F$6*Dane!L34+$F$7*Dane!M34","v":1332},30,"Śląski_Uniwersytet_Medyczny_w_Katowicach",{"$f":"MAX(Rankingi!$I$2*(101-Dane!H31),Rankingi!$I$3*(101-Dane!I31),Rankingi!$I$4*(101-Dane!J31),Rankingi!$I$5*(101-Dane!K31),Rankingi!$I$6*(101-Dane!L31),Rankingi!$I$7*(101-Dane!M31))","v":1959.3899999999999},30,"Politechnika_Lubelska",{"$f":"MAX(Rankingi!$L$2*(101-Dane!H35),Rankingi!$L$3*(101-Dane!I35),Rankingi!$L$4*(101-Dane!J35),Rankingi!$L$5*(101-Dane!K35),Rankingi!$L$6*(101-Dane!L35),Rankingi!$L$7*(101-Dane!M35))","v":2735.74551859844},30]
[null,null,"Katolicki Uniwersytet Lubelski Jana Pawła II",null,31,"Uniwersytet_Rolniczy_im._Hugona_Kołłštaja_w_Krakowie",{"$f":"$F$2*Dane!H40+$F$3*Dane!I40+$F$4*Dane!J40+$F$5*Dane!K40+$F$6*Dane!L40+$F$7*Dane!M40","v":1119},31,"Katolicki_Uniwersytet_Lubelski_Jana_Pawła_II",{"$f":"MAX(Rankingi!$I$2*(101-Dane!H47),Rankingi!$I$3*(101-Dane!I47),Rankingi!$I$4*(101-Dane!J47),Rankingi!$I$5*(101-Dane!K47),Rankingi!$I$6*(101-Dane!L47),Rankingi!$I$7*(101-Dane!M47))","v":1969.9200000000003},31,"Uniwersytet_Ekonomiczny_we_Wrocławiu",{"$f":"MAX(Rankingi!$L$2*(101-Dane!H36),Rankingi!$L$3*(101-Dane!I36),Rankingi!$L$4*(101-Dane!J36),Rankingi!$L$5*(101-Dane!K36),Rankingi!$L$6*(101-Dane!L36),Rankingi!$L$7*(101-Dane!M36))","v":2736.4167024842595},31]
[null,null,"Pomorski Uniwersytet Medyczny w Szczecinie",null,32,"Uniwersytet_Wrocławski",{"$f":"$F$2*Dane!H9+$F$3*Dane!I9+$F$4*Dane!J9+$F$5*Dane!K9+$F$6*Dane!L9+$F$7*Dane!M9","v":1105},32,"Pomorski_Uniwersytet_Medyczny_w_Szczecinie",{"$f":"MAX(Rankingi!$I$2*(101-Dane!H14),Rankingi!$I$3*(101-Dane!I14),Rankingi!$I$4*(101-Dane!J14),Rankingi!$I$5*(101-Dane!K14),Rankingi!$I$6*(101-Dane!L14),Rankingi!$I$7*(101-Dane!M14))","v":1981.53},32,"Uniwersytet_Kardynała_Stefana_Wyszyńskiego_w_Warszawie",{"$f":"MAX(Rankingi!$L$2*(101-Dane!H42),Rankingi!$L$3*(101-Dane!I42),Rankingi!$L$4*(101-Dane!J42),Rankingi!$L$5*(101-Dane!K42),Rankingi!$L$6*(101-Dane!L42),Rankingi!$L$7*(101-Dane!M42))","v":2745.1420929999067},32]
[null,null,"Politechnika Lubelska",null,33,"Uniwersytet_Medyczny_w_Białymstoku",{"$f":"$F$2*Dane!H27+$F$3*Dane!I27+$F$4*Dane!J27+$F$5*Dane!K27+$F$6*Dane!L27+$F$7*Dane!M27","v":1032},33,"Politechnika_Lubelska",{"$f":"MAX(Rankingi!$I$2*(101-Dane!H11),Rankingi!$I$3*(101-Dane!I11),Rankingi!$I$4*(101-Dane!J11),Rankingi!$I$5*(101-Dane!K11),Rankingi!$I$6*(101-Dane!L11),Rankingi!$I$7*(101-Dane!M11))","v":1991.5200000000002},33,"Politechnika_Łódzka",{"$f":"MAX(Rankingi!$L$2*(101-Dane!H16),Rankingi!$L$3*(101-Dane!I16),Rankingi!$L$4*(101-Dane!J16),Rankingi!$L$5*(101-Dane!K16),Rankingi!$L$6*(101-Dane!L16),Rankingi!$L$7*(101-Dane!M16))","v":2783.3995744915924},33]
[null,null,"Uniwersytet Ekonomiczny we Wrocławiu",null,34,"Katolicki_Uniwersytet_Lubelski_Jana_Pawła_II",{"$f":"$F$2*Dane!H33+$F$3*Dane!I33+$F$4*Dane!J33+$F$5*Dane!K33+$F$6*Dane!L33+$F$7*Dane!M33","v":1009},34,"Uniwersytet_Ekonomiczny_we_Wrocławiu",{"$f":"MAX(Rankingi!$I$2*(101-Dane!H48),Rankingi!$I$3*(101-Dane!I48),Rankingi!$I$4*(101-Dane!J48),Rankingi!$I$5*(101-Dane!K48),Rankingi!$I$6*(101-Dane!L48),Rankingi!$I$7*(101-Dane!M48))","v":2007.9900000000002},34,"Uniwersytet_Rolniczy_im._Hugona_Kołłštaja_w_Krakowie",{"$f":"MAX(Rankingi!$L$2*(101-Dane!H40),Rankingi!$L$3*(101-Dane!I40),Rankingi!$L$4*(101-Dane!J40),Rankingi!$L$5*(101-Dane!K40),Rankingi!$L$6*(101-Dane!L40),Rankingi!$L$7*(101-Dane!M40))","v":2806.8910104952593},34]
[null,null,"Uniwersytet Warmińsko-Mazurski w Olsztynie",null,35,"Śląski_Uniwersytet_Medyczny_w_Katowicach",{"$f":"$F$2*Dane!H32+$F$3*Dane!I32+$F$4*Dane!J32+$F$5*Dane!K32+$F$6*Dane!L32+$F$7*Dane!M32","v":940},35,"Uniwersytet_Warmińsko-Mazurski_w_Olsztynie",{"$f":"MAX(Rankingi!$I$2*(101-Dane!H45),Rankingi!$I$3*(101-Dane!I45),Rankingi!$I$4*(101-Dane!J45),Rankingi!$I$5*(101-Dane!K45),Rankingi!$I$6*(101-Dane!L45),Rankingi!$I$7*(101-Dane!M45))","v":2016.0900000000001},35,"SWPS_Uniwersytet_Humanistyczno-Społeczny",{"$f":"MAX(Rankingi!$L$2*(101-Dane!H44),Rankingi!$L$3*(101-Dane!I44),Rankingi!$L$4*(101-Dane!J44),Rankingi!$L$5*(101-Dane!K44),Rankingi!$L$6*(101-Dane!L44),Rankingi!$L$7*(101-Dane!M44))","v":2807.5621943810779},35]
[null,null,"Wojskowa Akademia Techniczna im. Jarosława Dąbrowskiego w Warszawie",null,36,"Politechnika_Częstochowska",{"$f":"$F$2*Dane!H45+$F$3*Dane!I45+$F$4*Dane!J45+$F$5*Dane!K45+$F$6*Dane!L45+$F$7*Dane!M45","v":842},36,"Wojskowa_Akademia_Techniczna_im._Jarosława_Dąbrowskiego_w_Warszawie",{"$f":"MAX(Rankingi!$I$2*(101-Dane!H50),Rankingi!$I$3*(101-Dane!I50),Rankingi!$I$4*(101-Dane!J50),Rankingi!$I$5*(101-Dane!K50),Rankingi!$I$6*(101-Dane!L50),Rankingi!$I$7*(101-Dane!M50))","v":2024.7299999999998},36,"Zachodniopomorski_Uniwersytet_Technologiczny_w_Szczecinie",{"$f":"MAX(Rankingi!$L$2*(101-Dane!H41),Rankingi!$L$3*(101-Dane!I41),Rankingi!$L$4*(101-Dane!J41),Rankingi!$L$5*(101-Dane!K41),Rankingi!$L$6*(101-Dane!L41),Rankingi!$L$7*(101-Dane!M41))","v":2874.680582962983},36]
[null,null,"Uniwersytet w Białymstoku",null,37,"Uniwersytet_Ekonomiczny_we_Wrocławiu",{"$f":"$F$2*Dane!H36+$F$3*Dane!I36+$F$4*Dane!J36+$F$5*Dane!K36+$F$6*Dane!L36+$F$7*Dane!M36","v":772},37,"Uniwersytet_w_Białymstoku",{"$f":"MAX(Rankingi!$I$2*(101-Dane!H49),Rankingi!$I$3*(101-Dane!I49),Rankingi!$I$4*(101-Dane!J49),Rankingi!$I$5*(101-Dane!K49),Rankingi!$I$6*(101-Dane!L49),Rankingi!$I$7*(101-Dane!M49))","v":2043.9},37,"Uniwersytet_Ekonomiczny_w_Poznaniu",{"$f":"MAX(Rankingi!$L$2*(101-Dane!H24),Rankingi!$L$3*(101-Dane!I24),Rankingi!$L$4*(101-Dane!J24),Rankingi!$L$5*(101-Dane!K24),Rankingi!$L$6*(101-Dane!L24),Rankingi!$L$7*(101-Dane!M24))","v":2933.0735810292404},37]
[null,null,"Uniwersytet Rolniczy im. Hugona Kołłątaja w Krakowie",null,38,"Uniwersytet_Medyczny_w_Łodzi",{"$f":"$F$2*Dane!H22+$F$3*Dane!I22+$F$4*Dane!J22+$F$5*Dane!K22+$F$6*Dane!L22+$F$7*Dane!M22","v":730},38,"Uniwersytet_Rolniczy_im._Hugona_Kołłštaja_w_Krakowie",{"$f":"MAX(Rankingi!$I$2*(101-Dane!H36),Rankingi!$I$3*(101-Dane!I36),Rankingi!$I$4*(101-Dane!J36),Rankingi!$I$5*(101-Dane!K36),Rankingi!$I$6*(101-Dane!L36),Rankingi!$I$7*(101-Dane!M36))","v":2047.68},38,"Politechnika_Częstochowska",{"$f":"MAX(Rankingi!$L$2*(101-Dane!H45),Rankingi!$L$3*(101-Dane!I45),Rankingi!$L$4*(101-Dane!J45),Rankingi!$L$5*(101-Dane!K45),Rankingi!$L$6*(101-Dane!L45),Rankingi!$L$7*(101-Dane!M45))","v":2965.2904075485544},38]
[null,null,"Zachodniopomorski Uniwersytet Technologiczny w Szczecinie",null,39,"Uniwersytet_Medyczny_im._Karola_Marcinkowskiego_w_Poznaniu",{"$f":"$F$2*Dane!H14+$F$3*Dane!I14+$F$4*Dane!J14+$F$5*Dane!K14+$F$6*Dane!L14+$F$7*Dane!M14","v":678},39,"Zachodniopomorski_Uniwersytet_Technologiczny_w_Szczecinie",{"$f":"MAX(Rankingi!$I$2*(101-Dane!H46),Rankingi!$I$3*(101-Dane!I46),Rankingi!$I$4*(101-Dane!J46),Rankingi!$I$5*(101-Dane!K46),Rankingi!$I$6*(101-Dane!L46),Rankingi!$I$7*(101-Dane!M46))","v":2076.84},39,"Szkoła_Główna_Handlowa_w_Warszawie",{"$f":"MAX(Rankingi!$L$2*(101-Dane!H13),Rankingi!$L$3*(101-Dane!I13),Rankingi!$L$4*(101-Dane!J13),Rankingi!$L$5*(101-Dane!K13),Rankingi!$L$6*(101-Dane!L13),Rankingi!$L$7*(101-Dane!M13))","v":3046.5036577326596},39]
[null,null,"Uniwersytet Kardynała Stefana Wyszyńskiego w Warszawie",null,40,"Uniwersytet_Ekonomiczny_w_Poznaniu",{"$f":"$F$2*Dane!H24+$F$3*Dane!I24+$F$4*Dane!J24+$F$5*Dane!K24+$F$6*Dane!L24+$F$7*Dane!M24","v":634},40,"Uniwersytet_Kardynała_Stefana_Wyszyńskiego_w_Warszawie",{"$f":"MAX(Rankingi!$I$2*(101-Dane!H44),Rankingi!$I$3*(101-Dane!I44),Rankingi!$I$4*(101-Dane!J44),Rankingi!$I$5*(101-Dane!K44),Rankingi!$I$6*(101-Dane!L44),Rankingi!$I$7*(101-Dane!M44))","v":2081.6999999999998},40,"Politechnika_Rzeszowska_im._Ignacego_Łukasiewicza",{"$f":"MAX(Rankingi!$L$2*(101-Dane!H47),Rankingi!$L$3*(101-Dane!I47),Rankingi!$L$4*(101-Dane!J47),Rankingi!$L$5*(101-Dane!K47),Rankingi!$L$6*(101-Dane!L47),Rankingi!$L$7*(101-Dane!M47))","v":3145.8388728338782},40]
[null,null,"Politechnika Krakowska im. Tadeusza Ko\u009cciuszki",null,41,"Uniwersytet_Przyrodniczy_w_Poznaniu",{"$f":"$F$2*Dane!H30+$F$3*Dane!I30+$F$4*Dane!J30+$F$5*Dane!K30+$F$6*Dane!L30+$F$7*Dane!M30","v":535},41,"Politechnika_Krakowska_im._Tadeusza_Ko\u009cciuszki",{"$f":"MAX(Rankingi!$I$2*(101-Dane!H38),Rankingi!$I$3*(101-Dane!I38),Rankingi!$I$4*(101-Dane!J38),Rankingi!$I$5*(101-Dane!K38),Rankingi!$I$6*(101-Dane!L38),Rankingi!$I$7*(101-Dane!M38))","v":2095.7400000000002},41,"Szkoła_Główna_Gospodarstwa_Wiejskiego_w_Warszawie",{"$f":"MAX(Rankingi!$L$2*(101-Dane!H29),Rankingi!$L$3*(101-Dane!I29),Rankingi!$L$4*(101-Dane!J29),Rankingi!$L$5*(101-Dane!K29),Rankingi!$L$6*(101-Dane!L29),Rankingi!$L$7*(101-Dane!M29))","v":3203.5606870143165},41]
[null,null,"SWPS Uniwersytet Humanistyczno-Społeczny",null,42,"Uniwersytet_Kardynała_Stefana_Wyszyńskiego_w_Warszawie",{"$f":"$F$2*Dane!H42+$F$3*Dane!I42+$F$4*Dane!J42+$F$5*Dane!K42+$F$6*Dane!L42+$F$7*Dane!M42","v":440.00000000000006},42,"SWPS_Uniwersytet_Humanistyczno-Społeczny",{"$f":"MAX(Rankingi!$I$2*(101-Dane!H35),Rankingi!$I$3*(101-Dane!I35),Rankingi!$I$4*(101-Dane!J35),Rankingi!$I$5*(101-Dane!K35),Rankingi!$I$6*(101-Dane!L35),Rankingi!$I$7*(101-Dane!M35))","v":2125.44},42,"Polsko-Japońska_Akademia_Technik_Komputerowych_w_Warszawie",{"$f":"MAX(Rankingi!$L$2*(101-Dane!H46),Rankingi!$L$3*(101-Dane!I46),Rankingi!$L$4*(101-Dane!J46),Rankingi!$L$5*(101-Dane!K46),Rankingi!$L$6*(101-Dane!L46),Rankingi!$L$7*(101-Dane!M46))","v":3207.5877903292308},42]
[null,null,"Politechnika Częstochowska",null,43,"Gdański_Uniwersytet_Medyczny",{"$f":"$F$2*Dane!H11+$F$3*Dane!I11+$F$4*Dane!J11+$F$5*Dane!K11+$F$6*Dane!L11+$F$7*Dane!M11","v":369},43,"Politechnika_Częstochowska",{"$f":"MAX(Rankingi!$I$2*(101-Dane!H27),Rankingi!$I$3*(101-Dane!I27),Rankingi!$I$4*(101-Dane!J27),Rankingi!$I$5*(101-Dane!K27),Rankingi!$I$6*(101-Dane!L27),Rankingi!$I$7*(101-Dane!M27))","v":2141.1},43,"Politechnika_Opolska",{"$f":"MAX(Rankingi!$L$2*(101-Dane!H51),Rankingi!$L$3*(101-Dane!I51),Rankingi!$L$4*(101-Dane!J51),Rankingi!$L$5*(101-Dane!K51),Rankingi!$L$6*(101-Dane!L51),Rankingi!$L$7*(101-Dane!M51))","v":3399.5463816734787},43]
[null,null,"Polsko-Japońska Akademia Technik Komputerowych w Warszawie",null,44,"Szkoła_Główna_Handlowa_w_Warszawie",{"$f":"$F$2*Dane!H13+$F$3*Dane!I13+$F$4*Dane!J13+$F$5*Dane!K13+$F$6*Dane!L13+$F$7*Dane!M13","v":333},44,"Polsko-Japońska_Akademia_Technik_Komputerowych_w_Warszawie",{"$f":"MAX(Rankingi!$I$2*(101-Dane!H51),Rankingi!$I$3*(101-Dane!I51),Rankingi!$I$4*(101-Dane!J51),Rankingi!$I$5*(101-Dane!K51),Rankingi!$I$6*(101-Dane!L51),Rankingi!$I$7*(101-Dane!M51))","v":2156.4900000000002},44,"Uniwersytet_Ekonomiczny_w_Katowicach",{"$f":"MAX(Rankingi!$L$2*(101-Dane!H49),Rankingi!$L$3*(101-Dane!I49),Rankingi!$L$4*(101-Dane!J49),Rankingi!$L$5*(101-Dane!K49),Rankingi!$L$6*(101-Dane!L49),Rankingi!$L$7*(101-Dane!M49))","v":3658.6233615996312},44]
[null,null,"Politechnika Rzeszowska im. Ignacego Łukasiewicza",null,45,"Uniwersytet_Ekonomiczny_w_Katowicach",{"$f":"$F$2*Dane!H49+$F$3*Dane!I49+$F$4*Dane!J49+$F$5*Dane!K49+$F$6*Dane!L49+$F$7*Dane!M49","v":286},45,"Politechnika_Rzeszowska_im._Ignacego_Łukasiewicza",{"$f":"MAX(Rankingi!$I$2*(101-Dane!H41),Rankingi!$I$3*(101-Dane!I41),Rankingi!$I$4*(101-Dane!J41),Rankingi!$I$5*(101-Dane!K41),Rankingi!$I$6*(101-Dane!L41),Rankingi!$I$7*(101-Dane!M41))","v":2223.7199999999998},45,"Uniwersytet_Przyrodniczy_w_Lublinie",{"$f":"MAX(Rankingi!$L$2*(101-Dane!H50),Rankingi!$L$3*(101-Dane!I50),Rankingi!$L$4*(101-Dane!J50),Rankingi!$L$5*(101-Dane!K50),Rankingi!$L$6*(101-Dane!L50),Rankingi!$L$7*(101-Dane!M50))","v":3730.4400373822691},45]
[null,null,"Uniwersytet Ekonomiczny w Krakowie",null,46,"Polsko-Japońska_Akademia_Technik_Komputerowych_w_Warszawie",{"$f":"$F$2*Dane!H46+$F$3*Dane!I46+$F$4*Dane!J46+$F$5*Dane!K46+$F$6*Dane!L46+$F$7*Dane!M46","v":276},46,"Uniwersytet_Ekonomiczny_w_Krakowie",{"$f":"MAX(Rankingi!$I$2*(101-Dane!H52),Rankingi!$I$3*(101-Dane!I52),Rankingi!$I$4*(101-Dane!J52),Rankingi!$I$5*(101-Dane!K52),Rankingi!$I$6*(101-Dane!L52),Rankingi!$I$7*(101-Dane!M52))","v":2225.0699999999997},46,"Politechnika_Krakowska_im._Tadeusza_Ko\u009cciuszki",{"$f":"MAX(Rankingi!$L$2*(101-Dane!H43),Rankingi!$L$3*(101-Dane!I43),Rankingi!$L$4*(101-Dane!J43),Rankingi!$L$5*(101-Dane!K43),Rankingi!$L$6*(101-Dane!L43),Rankingi!$L$7*(101-Dane!M43))","v":3739.1654278979172},46]
[null,null,"Uniwersytet Ekonomiczny w Katowicach",null,47,"Uniwersytet_Ekonomiczny_w_Krakowie",{"$f":"$F$2*Dane!H48+$F$3*Dane!I48+$F$4*Dane!J48+$F$5*Dane!K48+$F$6*Dane!L48+$F$7*Dane!M48","v":252.99999999999997},47,"Uniwersytet_Ekonomiczny_w_Katowicach",{"$f":"MAX(Rankingi!$I$2*(101-Dane!H32),Rankingi!$I$3*(101-Dane!I32),Rankingi!$I$4*(101-Dane!J32),Rankingi!$I$5*(101-Dane!K32),Rankingi!$I$6*(101-Dane!L32),Rankingi!$I$7*(101-Dane!M32))","v":2272.0500000000002},47,"Uniwersytet_Warmińsko-Mazurski_w_Olsztynie",{"$f":"MAX(Rankingi!$L$2*(101-Dane!H37),Rankingi!$L$3*(101-Dane!I37),Rankingi!$L$4*(101-Dane!J37),Rankingi!$L$5*(101-Dane!K37),Rankingi!$L$6*(101-Dane!L37),Rankingi!$L$7*(101-Dane!M37))","v":3880.1140439199171},47]
[null,null,"Uniwersytet Przyrodniczy w Lublinie",null,48,"SWPS_Uniwersytet_Humanistyczno-Społeczny",{"$f":"$F$2*Dane!H44+$F$3*Dane!I44+$F$4*Dane!J44+$F$5*Dane!K44+$F$6*Dane!L44+$F$7*Dane!M44","v":174},48,"Uniwersytet_Przyrodniczy_w_Lublinie",{"$f":"MAX(Rankingi!$I$2*(101-Dane!H39),Rankingi!$I$3*(101-Dane!I39),Rankingi!$I$4*(101-Dane!J39),Rankingi!$I$5*(101-Dane!K39),Rankingi!$I$6*(101-Dane!L39),Rankingi!$I$7*(101-Dane!M39))","v":2284.7400000000002},48,"Uniwersytet_Ekonomiczny_w_Krakowie",{"$f":"MAX(Rankingi!$L$2*(101-Dane!H48),Rankingi!$L$3*(101-Dane!I48),Rankingi!$L$4*(101-Dane!J48),Rankingi!$L$5*(101-Dane!K48),Rankingi!$L$6*(101-Dane!L48),Rankingi!$L$7*(101-Dane!M48))","v":3915.0156059825076},48]
[null,null,"Politechnika Opolska",null,49,"Akademia_Leona_Ko\u009fmińskiego_w_Warszawie",{"$f":"$F$2*Dane!H25+$F$3*Dane!I25+$F$4*Dane!J25+$F$5*Dane!K25+$F$6*Dane!L25+$F$7*Dane!M25","v":114.99999999999999},49,"Politechnika_Opolska",{"$f":"MAX(Rankingi!$I$2*(101-Dane!H26),Rankingi!$I$3*(101-Dane!I26),Rankingi!$I$4*(101-Dane!J26),Rankingi!$I$5*(101-Dane!K26),Rankingi!$I$6*(101-Dane!L26),Rankingi!$I$7*(101-Dane!M26))","v":2295.27},49,"Uczelnia_Łazarskiego_w_Warszawie",{"$f":"MAX(Rankingi!$L$2*(101-Dane!H52),Rankingi!$L$3*(101-Dane!I52),Rankingi!$L$4*(101-Dane!J52),Rankingi!$L$5*(101-Dane!K52),Rankingi!$L$6*(101-Dane!L52),Rankingi!$L$7*(101-Dane!M52))","v":3974.7509718204028},49]
[null,null,"Uczelnia Łazarskiego w Warszawie",null,50,"Uczelnia_Łazarskiego_w_Warszawie",{"$f":"$F$2*Dane!H52+$F$3*Dane!I52+$F$4*Dane!J52+$F$5*Dane!K52+$F$6*Dane!L52+$F$7*Dane!M52","v":108},50,"Uczelnia_Łazarskiego_w_Warszawie",{"$f":"MAX(Rankingi!$I$2*(101-Dane!H34),Rankingi!$I$3*(101-Dane!I34),Rankingi!$I$4*(101-Dane!J34),Rankingi!$I$5*(101-Dane!K34),Rankingi!$I$6*(101-Dane!L34),Rankingi!$I$7*(101-Dane!M34))","v":2471.58},50,"Akademia_Leona_Ko\u009fmińskiego_w_Warszawie",{"$f":"MAX(Rankingi!$L$2*(101-Dane!H25),Rankingi!$L$3*(101-Dane!I25),Rankingi!$L$4*(101-Dane!J25),Rankingi!$L$5*(101-Dane!K25),Rankingi!$L$6*(101-Dane!L25),Rankingi!$L$7*(101-Dane!M25))","v":4150.6011499049937},50]

{"sheet":"Dane","index":1,"n_rows":52,"n_cols":15,"rows_kept":52,"cut":false,"hidden":false,"merged":[[6,14,11,17]]}
[]
[null,null,null,null,null,"Lp.\nwedług\nrankingu miesięcznika\nPerspektywy",null,"Prestiż","Innow.","Potenencjał\nnaukowy","Efektywność\nnaukowa","Warunki\nkształcenia","Umiędz."]
[null,null,null,null,null,1,"Uniwersytet_Warszawski",95.3,48.29,96.35,100,84.06,54.29]
[null,null,null,null,null,2,"Uniwersytet_Jagielloński",100,30.48,100,85.11,100,53.44]
[null,null,null,null,null,3,"Uniwersytet_im._Adama_Mickiewicza_w_Poznaniu",62.95,46.84,92.36,81.7,79.53,58.98]
[null,null,null,null,null,4,"Politechnika_Warszawska",71.53,44.4,87.92,79.739999999999995,47.94,63.65]
[null,null,null,null,null,5,"Politechnika_Wrocławska",55.77,89.79,84.27,64.87,90.6,57.63,null,"Uniwesytety oznaczone kolorem żółtym są Pareto optymalne"]
[null,null,null,null,null,6,"Akademia_Górniczo-Hutnicza_im._Stanisława_Staszica_w_Krakowie",59.89,68.75,86.58,82.52,67.150000000000006,35.340000000000003]
[null,null,null,null,null,7,"Uniwersytet_Wrocławski",52.79,11.05,91.91,81.760000000000005,50.47,51.18]
[null,null,null,null,null,8,"Warszawski_Uniwersytet_Medyczny",45.02,15.24,73.61,76.63,84.03,33.71]
[null,null,null,null,null,9,"Gdański_Uniwersytet_Medyczny",27.24,3.69,82.98,85.51,80.41,48.91]
[null,null,null,null,null,10,"Uniwersytet_Mikołaja_Kopernika_w_Toruniu",44.73,19.97,88.79,71.94,64.22,13.68]
[null,null,null,null,null,11,"Szkoła_Główna_Handlowa_w_Warszawie",49.49,3.33,94.64,55.61,41.05,45.26]
[null,null,null,null,null,12,"Uniwersytet_Medyczny_im._Karola_Marcinkowskiego_w_Poznaniu",27.61,6.78,79.040000000000006,78.62,87.04,46.73]
[null,null,null,null,null,13,"Uniwersytet_\u008cŚląski_w_Katowicach",38.99,27.04,81.459999999999994,87.6,46.81,10.07]
[null,null,null,null,null,14,"Politechnika_Łódzka",34.57,66.23,79.650000000000006,59.53,58.27,44.97]
[null,null,null,null,null,15,"Politechnika_Gdańska",33,67.64,74.900000000000006,63.21,76.849999999999994,36.520000000000003]
[null,null,null,null,null,16,"Uniwersytet_Łódzki",36.18,21.06,79.33,72.260000000000005,48.72,38.14]
[null,null,null,null,null,17,"Politechnika_Poznańska",39.659999999999997,43.86,77.849999999999994,69.75,29.37,33.14]
[null,null,null,null,null,18,"Uniwersytet_Medyczny_im._Piastów_Śląskich_we_Wrocławiu",29.86,20.72,73.849999999999994,72.84,78.53,38.39]
[null,null,null,null,null,19,"Politechnika_Śląska_w_Gliwicach",43.5,30.44,78.760000000000005,60.24,49.5,31.46]
[null,null,null,null,null,20,"Uniwersytet_Medyczny_w_Łodzi",30.18,7.3,81.2,72.61,78.19,24.5]
[null,null,null,null,null,21,"Uniwersytet_Gdański",35.6,27.9,80.95,68.319999999999993,49.85,16.760000000000002]
[null,null,null,null,null,22,"Uniwersytet_Ekonomiczny_w_Poznaniu",39.340000000000003,6.34,81.510000000000005,57.3,66.86,26.18]
[null,null,null,null,null,23,"Akademia_Leona_Ko\u009fmińskiego_w_Warszawie",31.74,1.1499999999999999,79.98,39.159999999999997,42.28,100]
[null,null,null,null,null,24,"Uniwersytet_Medyczny_w_Lublinie",15.99,32.159999999999997,73.290000000000006,63.81,92.04,56.9]
[null,null,null,null,null,25,"Uniwersytet_Medyczny_w_Białymstoku",21.7,10.32,88.28,74.849999999999994,72.63,17.829999999999998]
[null,null,null,null,null,26,"Uniwersytet_Marii_Curie-Skłodowskiej_w_Lublinie",34.65,21.42,74.19,81.650000000000006,29.73,12.1]
[null,null,null,null,null,27,"Szkoła_Główna_Gospodarstwa_Wiejskiego_w_Warszawie",41.4,15.46,75.22,53.27,34.409999999999997,17.940000000000001]
[null,null,null,null,null,28,"Uniwersytet_Przyrodniczy_w_Poznaniu",33.31,5.35,76.94,65.66,46.9,8.81]
[null,null,null,null,null,29,"Uniwersytet_Przyrodniczy_we_Wrocławiu",28.43,43.63,78.709999999999994,61.29,36.020000000000003,14.83]
[null,null,null,null,null,30,"Śląski_Uniwersytet_Medyczny_w_Katowicach",16.850000000000001,9.4,77.03,72.739999999999995,71.849999999999994,20.05]
[null,null,null,null,null,31,"Katolicki_Uniwersytet_Lubelski_Jana_Pawła_II",30.61,10.09,73.17,62.23,51.67,18.03]
[null,null,null,null,null,32,"Pomorski_Uniwersytet_Medyczny_w_Szczecinie",9.4600000000000009,13.32,76.42,74.87,45.08,40.130000000000003]
[null,null,null,null,null,33,"Politechnika_Lubelska",22.28,100,64.849999999999994,60.24,19.96,21.22]
[null,null,null,null,null,34,"Uniwersytet_Ekonomiczny_we_Wrocławiu",25.16,7.72,79.040000000000006,60.23,30.68,25.69]
[null,null,null,null,null,35,"Uniwersytet_Warmińsko-Mazurski_w_Olsztynie",29.59,30.33,77.72,43.19,52.12,11.13]
[null,null,null,null,null,36,"Wojskowa_Akademia_Techniczna_im._Jarosława_Dąbrowskiego_w_Warszawie",23.38,16,66.2,68.760000000000005,51.25,2.06]
[null,null,null,null,null,37,"Uniwersytet_w_Białymstoku",16.38,17.77,70.14,78.900000000000006,31.43,7.46]
[null,null,null,null,null,38,"Uniwersytet_Rolniczy_im._Hugona_Kołłštaja_w_Krakowie",30.12,11.19,71.349999999999994,59.18,32.1,6.94]
[null,null,null,null,null,39,"Zachodniopomorski_Uniwersytet_Technologiczny_w_Szczecinie",18.64,50.66,77.62,58.17,35.92,8.07]
[null,null,null,null,null,40,"Uniwersytet_Kardynała_Stefana_Wyszyńskiego_w_Warszawie",30.98,4.4000000000000004,76.010000000000005,60.1,23.59,4.17]
[null,null,null,null,null,41,"Politechnika_Krakowska_im._Tadeusza_Ko\u009cciuszki",33.86,20.8,61.83,45.29,47.29,19.59]
[null,null,null,null,null,42,"SWPS_Uniwersytet_Humanistyczno-Społeczny",23.9,1.74,71.91,59.17,23.36,27.05]
[null,null,null,null,null,43,"Politechnika_Częstochowska",26.33,8.42,68.77,56.82,37.770000000000003,12.24]
[null,null,null,null,null,44,"Polsko-Japońska_Akademia_Technik_Komputerowych_w_Warszawie",24.08,2.76,75.319999999999993,53.21,12.14,29.72]
[null,null,null,null,null,45,"Politechnika_Rzeszowska_im._Ignacego_Łukasiewicza",28.04,47.02,63.43,54.13,17.059999999999999,5.94]
[null,null,null,null,null,46,"Uniwersytet_Ekonomiczny_w_Krakowie",26.63,2.5299999999999998,77.22,42.67,17.260000000000002,23.45]
[null,null,null,null,null,47,"Uniwersytet_Ekonomiczny_w_Katowicach",25.3,2.86,69.05,46.49,29.34,21.15]
[null,null,null,null,null,47,"Uniwersytet_Przyrodniczy_w_Lublinie",26.01,29.54,67.72,45.42,37.409999999999997,3.89]
[null,null,null,null,null,49,"Politechnika_Opolska",21.13,28.74,65.45,50.35,25.62,17.66]
[null,null,null,null,null,50,"Uczelnia_Łazarskiego_w_Warszawie",18.59,1.08,54.06,41.78,35.19,63.78]

{"sheet":"Roboczy","index":2,"n_rows":9,"n_cols":8,"rows_kept":9,"cut":false,"hidden":false,"merged":[]}
[]
[null,1,2,3,4,5,6]
[null,{"$f":"2+Rankingi!M7","v":3}]
[null,{"$f":"CONCATENATE(\"Dane!h\",$B$3)","v":"Dane!h3"},{"$f":"CONCATENATE(\"Dane!i\",$B$3)","v":"Dane!i3"},{"$f":"CONCATENATE(\"Dane!j\",$B$3)","v":"Dane!j3"},{"$f":"CONCATENATE(\"Dane!k\",$B$3)","v":"Dane!k3"},{"$f":"CONCATENATE(\"Dane!l\",$B$3)","v":"Dane!l3"},{"$f":"CONCATENATE(\"Dane!m\",$B$3)","v":"Dane!m3"}]
[]
[null,{"$f":"1/(101-INDIRECT(B4))","v":0.17543859649122798},{"$f":"1/(101-INDIRECT(C4))","v":1.8971732119142479E-2},0.21505376344085994,1,5.9031877213695405E-2,2.1408691928923144E-2,{"$f":"SUM(B6:G6)","v":1.4899046611938491}]
[null,{"$f":"100*B6/$H$6","v":11.775155891562241},{"$f":"100*C6/$H$6","v":1.2733520884444094},14.434062060624672,67.11838858190481,3.9621244735481009,1.436916903915753,{"$f":"SUM(B7:G7)","v":99.999999999999986}]
[]
[null,{"$f":"1/(101-Dane!H52)","v":1.2134449702705982E-2},{"$f":"1/(101-Dane!I52)","v":1.0008006405124099E-2},{"$f":"1/(101-Dane!J52)","v":2.130379207498935E-2},{"$f":"1/(101-Dane!K52)","v":1.6886187098953058E-2},{"$f":"1/(101-Dane!L52)","v":1.5195259079167299E-2},{"$f":"1/(101-Dane!M52)","v":2.6867275658248254E-2}]